bitfinex/quotes_SOLUSD_20250908
["timestamp","ask_amount","ask_price","bid_price","bid_amount"]
[1757315619045,1e-08,207.7,207.69,146.26918738]
[1757315620064,1e-08,207.7,207.69,183.12918738]
[1757315621473,1e-08,207.7,207.69,179.37262561]
[1757315621654,1e-08,207.7,207.69,183.12918738]
[1757315628582,1e-08,207.7,207.69,157.12918738]
[1757315629295,19.27954152,207.8,207.69,157.12918738]
[1757315629296,5.39235684,207.94,207.79,20.0]
[1757315629582,0.6,207.97,207.94,26.0]
[1757315629780,0.6,207.97,207.96,3.75656177]
[1757315629959,3.75656177,208.01,207.96,6.44119196]
[1757315630266,3.75656177,208.01,207.97,6.44119196]
[1757315630461,4.35656177,208.0,207.98,6.79421048]
[1757315630664,38.3,208.01,207.99,6.79421048]
[1757315630878,21.13106451,208.02,207.94,14.44217114]
[1757315631064,45.4875608,208.01,207.95,3.20482505]
[1757315631258,46.0875608,208.0,207.96,3.20482505]
[1757315631466,13.59559401,207.98,207.97,3.20482505]
[1757315631760,17.18934141,207.98,207.97,3.20482505]
[1757315631964,21.54590318,207.98,207.97,3.20482505]
[1757315632370,17.78934141,207.98,207.93,8.56578425]
[1757315632574,4.1937474,207.97,207.94,3.04988124]
[1757315632879,4.1937474,207.96,207.95,3.04988124]
[1757315633070,0.6,207.96,207.95,3.04988124]
[1757315634098,20.0,208.15,207.96,28.94]
[1757315634381,4.35656177,208.12,208.05,28.94]
[1757315634688,4.17404446,208.11,208.06,6.79742657]
[1757315634888,4.17404446,208.11,208.05,28.94]
[1757315634889,0.6,208.1,208.07,3.0408648]
[1757315635064,0.6,208.09,208.04,3.75656177]
[1757315635375,0.6,208.09,208.07,4.80360272]
[1757315635376,0.6,208.08,208.07,4.80360272]
[1757315635796,0.6,208.08,208.04,8.56328308]
[1757315635963,39.92,208.09,208.04,8.56328308]
[1757315635964,0.6,208.07,208.05,14.43313849]
[1757315636165,0.6,208.13,208.06,33.39656177]
[1757315636365,3.75656177,208.12,208.07,3.02867706]
[1757315636561,0.6,208.11,208.07,18.18831162]
[1757315636762,3.75656177,208.12,208.07,14.43174985]
[1757315636961,0.6,208.1,208.06,3.75656177]
[1757315637164,0.6,208.1,208.06,14.43313848]
[1757315637379,40.56,208.1,208.06,14.43313848]
[1757315637570,0.6,208.1,208.06,14.43313848]
[1757315637772,40.56,208.1,208.06,14.43313848]
[1757315638374,0.6,208.09,208.06,14.43313848]
[1757315638772,4.35656177,208.11,208.06,14.43313848]
[1757315638969,0.6,208.09,208.06,14.43313848]
[1757315639508,0.6,208.08,208.06,14.43313848]
[1757315639662,0.6,208.08,208.06,94.53313848]
[1757315640067,43.75656177,208.09,208.06,94.53313848]
[1757315640271,43.75656177,208.09,208.06,80.1]
[1757315640471,0.6,208.08,208.06,80.1]
[1757315640880,39.98,208.07,208.06,80.1]
[1757315641272,39.96,208.07,208.06,80.1]
[1757315641679,0.6,208.08,208.06,80.1]
[1757315641885,39.96,208.07,208.06,80.1]
[1757315642893,2.39746368,208.09,208.06,80.1]
[1757315643095,39.92,208.07,208.06,80.1]
[1757315643391,16.59305769,208.07,208.04,14.43452739]
[1757315643610,2.39746368,208.06,208.04,14.43452739]
[1757315643891,39.9,208.05,208.02,7.90465348]
[1757315644097,39.9,208.05,208.03,3.73450934]
[1757315644395,39.9,208.05,208.03,0.7]
[1757315644798,39.9,208.05,208.03,5.50683745]
[1757315644983,2.39746368,208.08,208.03,7.90430113]
[1757315645182,2.99746368,208.08,208.03,7.90430113]
[1757315645496,39.86,208.07,208.04,3.03188972]
[1757315645697,39.86,208.06,208.04,3.03188972]
[1757315645871,2.99746368,208.08,208.04,7.83862353]
[1757315646072,2.99746368,208.08,208.04,4.80673381]
[1757315646289,2.39746368,208.06,208.01,14.19559401]
[1757315646595,0.6,208.05,208.02,3.03108221]
[1757315646793,14.43661125,208.06,208.03,3.73108221]
[1757315647010,26.36470571,208.09,208.04,0.7]
[1757315647011,39.84,208.05,208.04,0.7]
[1757315647197,39.84,208.05,208.04,3.73009689]
[1757315647374,39.84,208.05,208.04,6.12756057]
[1757315648085,33.56955545,208.09,208.04,10.93411998]
[1757315648288,39.8,208.08,208.04,7.90402309]
[1757315648487,39.8,208.07,208.04,7.90402309]
[1757315648689,33.56955545,208.09,208.04,5.50655941]
[1757315649295,31.17209177,208.09,208.04,5.50655941]
[1757315649485,42.17746368,208.08,208.04,5.50655941]
[1757315649794,2.39746368,208.08,208.04,5.50655941]
[1757315649999,31.17209177,208.09,208.04,5.50655941]
[1757315650000,4.80738606,208.09,208.05,29.09746368]
[1757315650197,39.76,208.09,208.06,6.12326557]
[1757315650394,39.76,208.09,208.07,3.72580189]
[1757315650590,39.76,208.09,208.07,0.7]
[1757315651392,0.06,208.07,208.05,43.52990781]
[1757315651597,15.99305769,208.06,208.02,4.837182]
[1757315651897,2.45746368,208.07,208.03,3.02533519]
[1757315652087,39.74,208.06,208.04,3.02533519]
[1757315652290,14.43661124,208.06,208.05,3.02533519]
[1757315652682,39.78,208.06,208.05,3.02533519]
[1757315652884,40.38,208.06,208.05,3.02533519]
[1757315653084,42.77746368,208.06,208.05,3.02533519]
[1757315653608,42.17746368,208.06,208.05,3.02533519]
[1757315654099,13.59559401,208.05,208.02,0.03]
[1757315654400,42.13746368,208.04,208.02,0.03]
[1757315654793,47.64514703,208.04,208.02,0.03]
[1757315655293,5.50768335,208.04,208.02,0.03]
[1757315655704,39.72,208.03,208.02,0.03]
[1757315655896,39.72,208.03,208.02,3.05661859]
[1757315657826,7.90514703,208.04,208.02,3.05661859]
[1757315658010,42.11746368,208.03,208.02,0.03]
[1757315658311,42.11746368,208.03,208.02,3.05864108]
[1757315658710,56.31305769,208.03,208.02,3.05864108]
[1757315659096,61.12005668,208.03,208.02,0.03]
[1757315659414,75.56014236,208.03,208.02,0.03]
[1757315663422,69.99314337,208.03,208.02,0.03]
[1757315663602,75.40014236,208.03,208.02,0.03]
[1757315665001,14.44008568,208.03,208.02,3.77140973]
[1757315665224,39.56,208.03,208.02,3.77140973]
[1757315666317,39.54,208.03,208.02,3.77140973]
[1757315666893,13.59559401,208.06,208.02,3.77140973]
[1757315667093,44.32767585,208.05,208.03,3.74140973]
[1757315667316,18.40326986,208.05,208.04,3.04140973]
[1757315667515,57.92326986,208.05,208.04,3.74140973]
[1757315669096,0.06,208.1,208.06,54.94]
[1757315669325,0.00333248,208.1,208.09,2.39746368]
[1757315669496,0.00333248,208.1,208.09,5.43887341]
[1757315669695,0.00333248,208.1,208.09,35.07887341]
[1757315670117,0.00333248,208.1,208.09,48.91887341]
[1757315670314,39.64,208.15,208.12,26.0]
[1757315670497,39.64,208.15,208.13,3.04140973]
[1757315670701,39.64,208.15,208.14,3.04140973]
[1757315671401,40.32,208.15,208.14,3.04140973]
[1757315672118,42.71746368,208.15,208.14,3.04140973]
[1757315672523,56.31305769,208.15,208.14,3.04140973]
[1757315673813,53.91559401,208.15,208.14,3.04140973]
[1757315674119,56.31305769,208.15,208.14,3.04140973]
[1757315674622,61.11728541,208.15,208.14,3.04140973]
[1757315675320,21.47728541,208.15,208.14,3.04140973]
[1757315675513,60.99728541,208.15,208.14,3.04140973]
[1757315677424,0.69,208.2,208.14,3.74140973]
[1757315677628,7.2036464,208.21,208.15,3.74140973]
[1757315677806,53.33559401,208.2,208.16,3.04140973]
[1757315678002,53.33559401,208.2,208.17,3.74140973]
[1757315678309,20.0,208.28,208.17,3.74140973]
[1757315678310,12.0004955,208.33,208.18,3.74140973]
[1757315678509,0.69,208.27,208.2,2.39746368]
[1757315678713,2.39746368,208.25,208.21,3.04140973]
[1757315678911,40.43,208.24,208.22,3.04140973]
[1757315679104,0.69,208.24,208.23,3.04140973]
[1757315679300,54.02559401,208.24,208.23,3.04140973]
[1757315680006,56.42305769,208.24,208.23,3.04140973]
[1757315680321,56.42305769,208.24,208.18,4.80349261]
[1757315680520,13.59559401,208.22,208.19,2.92887669]
[1757315680727,53.31559401,208.21,208.2,2.92887669]
[1757315681610,39.72,208.21,208.2,2.92887669]
[1757315681929,39.7,208.23,208.2,6.02634037]
[1757315682129,13.59559401,208.26,208.22,2.39746368]
[1757315682339,0.69,208.32,208.23,2.92887669]
[1757315682633,13.59559401,208.29,208.26,2.39746368]
[1757315682804,39.76,208.28,208.27,2.92887669]
[1757315683004,0.1,208.31,208.27,2.92887669]
[1757315683201,0.79,208.31,208.28,2.92887669]
[1757315683405,0.79,208.31,208.25,0.7]
[1757315683406,0.79,208.31,208.29,2.91838916]
[1757315683604,13.59559401,208.3,208.27,2.39746368]
[1757315683817,13.59559401,208.3,208.28,5.31554787]
[1757315684016,13.69559401,208.31,208.29,2.91808419]
[1757315684228,13.69559401,208.31,208.25,5.50181407]
[1757315684229,0.1,208.31,208.26,0.7]
[1757315684543,0.1,208.31,208.28,2.39746368]
[1757315685235,0.1,208.31,208.28,7.1986693]
[1757315685929,0.1,208.31,208.28,4.80120562]
[1757315686313,0.1,208.31,208.27,3.09746368]
[1757315687014,0.1,208.31,208.27,7.89879338]
[1757315687222,0.1,208.31,208.29,2.39746368]
[1757315687417,0.1,208.31,208.25,5.50171202]
[1757315687611,0.79,208.31,208.27,2.39746368]
[1757315688028,0.1,208.31,208.26,28.39746368]
[1757315688215,0.1,208.31,208.29,2.39746368]
[1757315688725,0.1,208.31,208.29,7.89845999]
[1757315690329,0.1,208.31,208.3,2.39746368]
[1757315690526,0.1,208.31,208.29,3.09746368]
[1757315690831,0.1,208.31,208.29,3.59746368]
[1757315691025,0.1,208.31,208.29,8.39842554]
[1757315691414,0.1,208.31,208.3,2.39746368]
[1757315691616,0.1,208.31,208.29,7.41265039]
[1757315691913,0.1,208.31,208.29,0.21422485]
[1757315692113,0.1,208.31,208.28,2.39746368]
[1757315692713,0.69,208.3,208.25,4.80170972]
[1757315692917,0.69,208.3,208.27,2.39746368]
[1757315693111,40.39,208.29,208.2,43.35857112]
[1757315693335,40.39,208.29,208.23,2.39746368]
[1757315693522,42.78746368,208.29,208.23,2.39746368]
[1757315693725,40.39,208.29,208.23,2.39746368]
[1757315694345,40.39,208.29,208.24,2.39746368]
[1757315694634,0.69,208.28,208.24,7.19950904]
[1757315695737,0.69,208.28,208.23,2.39746368]
[1757315695738,0.69,208.27,208.23,2.39746368]
[1757315696319,39.7,208.29,208.25,2.39746368]
[1757315696634,0.69,208.28,208.24,2.39746368]
[1757315697741,0.69,208.28,208.23,4.80230278]
[1757315697935,0.69,208.28,208.22,36.14006063]
[1757315697936,0.69,208.27,208.22,36.14006063]
[1757315698734,3.08746368,208.26,208.2,2.39746368]
[1757315698937,0.69,208.25,208.2,2.39746368]
[1757315699141,13.59559401,208.29,208.24,2.39746368]
[1757315699344,0.69,208.28,208.23,2.39746368]
[1757315699642,0.69,208.27,208.23,2.39746368]
[1757315699846,0.69,208.27,208.22,4.80261262]
[1757315700149,0.69,208.27,208.23,2.39746368]
[1757315700336,15.99305769,208.29,208.23,3.73871233]
[1757315700337,18.02430634,208.29,208.23,3.73871233]
[1757315700524,14.28559401,208.29,208.24,3.73871233]
[1757315700731,0.69,208.28,208.24,3.73871233]
[1757315701245,3.73871233,208.28,208.23,3.73871233]
[1757315701440,3.73871233,208.25,208.19,3.73871233]
[1757315701649,0.69,208.25,208.21,26.0]
[1757315701822,0.69,208.24,208.21,30.80272642]
[1757315702022,0.69,208.24,208.21,26.0]
[1757315703630,13.59559401,208.26,208.21,26.0]
[1757315703952,3.73871233,208.3,208.23,3.73871233]
[1757315703953,13.59559401,208.27,208.23,3.73871233]
[1757315704137,13.59559401,208.27,208.22,0.1]
[1757315704324,14.28559401,208.27,208.23,3.73871233]
[1757315705530,14.28559401,208.27,208.23,8.54098518]
[1757315705848,0.1,208.31,208.23,8.54098518]
[1757315706057,13.59559401,208.3,208.26,3.73871233]
[1757315706233,0.1,208.31,208.29,3.73871233]
[1757315706634,0.1,208.31,208.27,26.1]
[1757315706635,0.1,208.31,208.3,3.73871233]
[1757315707152,0.1,208.31,208.3,6.63912699]
[1757315707539,0.1,208.31,208.3,11.43989511]
[1757315709865,0.1,208.31,208.3,2.90041466]
[1757315710034,0.1,208.31,208.3,6.63912699]
[1757315710234,0.1,208.31,208.3,7.70118278]
[1757315710447,0.1,208.31,208.3,11.43989511]
[1757315711851,0.1,208.31,208.3,6.63912699]
[1757315712156,18.09430634,208.31,208.3,2.90041466]
[1757315712456,13.59559401,208.3,208.24,4.80194367]
[1757315712655,4.39871233,208.3,208.25,6.65051139]
[1757315712865,0.66,208.29,208.26,2.91179906]
[1757315713162,0.66,208.29,208.27,2.91179906]
[1757315713344,0.66,208.29,208.28,2.91179906]
[1757315714254,39.38,208.3,208.28,2.91179906]
[1757315714593,39.38,208.3,208.29,2.91179906]
[1757315714858,40.04,208.3,208.29,2.91179906]
[1757315716449,57.37430634,208.3,208.29,2.19179906]
[1757315716646,57.37430634,208.3,208.22,3.73871233]
[1757315716647,13.59559401,208.29,208.22,3.73871233]
[1757315716846,13.59559401,208.27,208.21,3.76871233]
[1757315717056,4.39871233,208.26,208.21,3.76871233]
[1757315717365,0.66,208.26,208.21,9.27149069]
[1757315717872,0.66,208.26,208.21,8.57149069]
[1757315718371,0.66,208.26,208.21,9.27149069]
[1757315719748,0.66,208.26,208.21,5.53277836]
[1757315719964,0.66,208.26,208.22,3.73871233]
[1757315720373,13.59559401,208.29,208.23,3.73871233]
[1757315720547,13.59559401,208.27,208.23,3.73871233]
[1757315721547,13.59559401,208.27,208.24,4.80215136]
[1757315721548,14.25559401,208.27,208.24,4.80215136]
[1757315722344,0.1,208.31,208.27,26.0]
[1757315722668,0.1,208.31,208.3,29.73871233]
[1757315723059,0.1,208.31,208.3,30.43871233]
[1757315723371,0.1,208.31,208.3,110.53871233]
[1757315723555,0.1,208.31,208.3,115.33948045]
[1757315723745,0.1,208.31,208.3,144.27948045]
[1757315724263,0.1,208.31,208.3,114.63948045]
[1757315724468,0.1,208.31,208.3,115.33948045]
[1757315727371,0.1,208.31,208.3,89.33948045]
[1757315727583,0.1,208.31,208.3,88.63948045]
[1757315727784,0.1,208.31,208.3,89.33948045]
[1757315728082,0.1,208.31,208.3,128.65948045]
[1757315728374,0.1,208.31,208.3,9.23948045]
[1757315728572,0.1,208.31,208.3,12.12340913]
[1757315729176,0.1,208.31,208.3,11.42340913]
[1757315730282,0.76,208.31,208.3,2.88392868]
[1757315731788,4.49871233,208.31,208.3,2.88392868]
[1757315732381,4.49871233,208.31,208.29,0.03]
[1757315733070,3.73871233,208.3,208.29,0.03]
[1757315733480,4.39871233,208.3,208.29,0.03]
[1757315733995,0.1,208.31,208.29,3.76871233]
[1757315734288,0.66,208.3,208.29,0.03]
[1757315734870,4.39871233,208.3,208.29,0.03]
[1757315735502,17.99430634,208.3,208.29,0.03]
[1757315735873,26.53378679,208.3,208.29,0.03]
[1757315737597,19.05636213,208.3,208.29,0.03]
[1757315737805,26.53378679,208.3,208.29,0.03]
[1757315738178,62.03507446,208.3,208.29,0.03]
[1757315738682,26.53378679,208.3,208.29,0.03]
[1757315739002,65.77378679,208.3,208.29,0.03]
[1757315741895,13.59559401,208.29,208.26,0.03]
[1757315742273,17.33430634,208.27,208.26,0.03]
[1757315742700,17.33430634,208.27,208.21,0.03]
[1757315742701,13.59559401,208.23,208.21,0.03]
[1757315742899,42.93871233,208.22,208.21,0.03]
[1757315743075,9.26132495,208.22,208.21,0.03]
[1757315743271,48.46132495,208.22,208.21,0.03]
[1757315745380,65.79563129,208.22,208.21,0.03]
[1757315745780,26.59563129,208.22,208.21,0.03]
[1757315746283,65.73563129,208.22,208.21,0.03]
[1757315746485,65.73563129,208.22,208.1,5.53528611]
[1757315746486,26.0,208.19,208.1,0.03]
[1757315746787,17.33430634,208.11,208.1,0.03]
[1757315747198,56.49430634,208.11,208.1,0.03]
[1757315747694,17.33430634,208.11,208.1,0.03]
[1757315747874,39.14,208.11,208.1,0.73]
[1757315748081,52.73559401,208.11,208.1,0.73]
[1757315748483,52.73559401,208.11,208.1,0.03]
[1757315749209,52.71559401,208.11,208.1,0.73]
[1757315749614,52.71559401,208.11,208.1,0.03]
[1757315750992,13.59559401,208.11,208.1,0.73]
[1757315751393,39.08,208.11,208.1,5.53538202]
[1757315751605,13.59559401,208.15,208.1,5.53538202]
[1757315751811,13.59559401,208.13,208.11,0.7]
[1757315752129,13.59559401,208.13,208.1,4.83538202]
[1757315752311,13.59559401,208.13,208.1,5.53538202]
[1757315752618,13.59559401,208.13,208.1,4.83538202]
[1757315754796,13.59559401,208.13,208.1,0.03]
[1757315755501,17.33430634,208.13,208.1,0.03]
[1757315756414,13.59559401,208.13,208.1,0.73]
[1757315756909,13.59559401,208.13,208.1,5.5352495]
[1757315758214,13.59559401,208.13,208.1,0.03]
[1757315759005,13.59559401,208.13,208.1,0.73]
[1757315759417,13.59559401,208.13,208.1,4.83531092]
[1757315760716,38.9,208.12,208.1,4.83531092]
[1757315760930,38.9,208.11,208.1,4.83531092]
[1757315762913,38.86,208.11,208.1,4.83531092]
[1757315763102,38.84,208.11,208.1,4.83531092]
[1757315763720,38.84,208.11,208.1,0.03]
[1757315764109,13.59559401,208.13,208.1,0.03]
[1757315764313,38.84,208.12,208.1,0.03]
[1757315765425,38.82,208.11,208.1,0.03]
[1757315765832,14.31559401,208.13,208.1,0.03]
[1757315766017,38.8,208.12,208.1,0.03]
[1757315767024,38.78,208.11,208.1,0.03]
[1757315768325,39.47,208.11,208.1,0.03]
[1757315770031,38.78,208.11,208.1,0.03]
[1757315770325,38.72,208.14,208.1,86.08583047]
[1757315770626,13.59559401,208.17,208.13,2.39612993]
[1757315770930,38.72,208.16,208.15,2.39612993]
[1757315771336,0.69,208.22,208.15,5.9591362]
[1757315771517,52.33559401,208.21,208.18,2.39612993]
[1757315772128,52.33559401,208.21,208.18,7.19948535]
[1757315772129,38.74,208.21,208.18,7.19948535]
[1757315772331,38.74,208.21,208.19,5.2703216]
[1757315772530,38.74,208.21,208.19,2.39612993]
[1757315772735,38.74,208.21,208.2,5.26972089]
[1757315772933,13.59559401,208.24,208.2,5.95972089]
[1757315773114,52.33559401,208.23,208.21,2.39612993]
[1757315773314,38.74,208.23,208.22,2.87598648]
[1757315773631,38.74,208.23,208.2,2.39612993]
[1757315773828,38.74,208.23,208.21,2.87613823]
[1757315774032,38.74,208.23,208.2,2.39612993]
[1757315774342,0.69,208.29,208.22,2.39612993]
[1757315774543,52.35559401,208.3,208.26,2.39612993]
[1757315774726,39.45,208.3,208.27,2.87613823]
[1757315774920,13.59559401,208.29,208.26,2.39612993]
[1757315775120,39.45,208.3,208.26,2.39612993]
[1757315775121,38.76,208.3,208.27,2.87663055]
[1757315775444,14.28559401,208.29,208.28,2.87663055]
[1757315776124,13.59559401,208.29,208.28,2.87663055]
[1757315777521,0.1,208.31,208.28,10.76388546]
[1757315777719,0.1,208.31,208.3,2.39612993]
[1757315777945,0.1,208.31,208.3,5.27276048]
[1757315778323,0.1,208.31,208.3,10.0735286]
[1757315778937,0.1,208.31,208.3,10.7635286]
[1757315780335,0.1,208.31,208.3,8.36739867]
[1757315780639,0.1,208.31,208.3,10.7635286]
[1757315782520,0.1,208.31,208.3,10.75300575]
[1757315784338,0.1,208.31,208.3,49.27752547]
[1757315785046,0.1,208.31,208.3,36.06300575]
[1757315786351,0.1,208.31,208.3,33.66687582]
[1757315786529,0.79,208.31,208.28,2.39612993]
[1757315786732,0.69,208.3,208.28,2.39612993]
[1757315786939,0.69,208.3,208.28,7.19732935]
[1757315787241,0.69,208.3,208.29,2.39612993]
[1757315787445,0.69,208.29,208.27,7.19757027]
[1757315787846,0.79,208.31,208.28,2.39612993]
[1757315788034,0.1,208.31,208.29,2.39612993]
[1757315788232,0.1,208.31,208.3,7.19689805]
[1757315790621,0.1,208.31,208.3,2.39612993]
[1757315790946,0.1,208.31,208.29,2.39612993]
[1757315791331,0.1,208.31,208.3,2.39612993]
[1757315792729,0.1,208.31,208.3,7.19689805]
[1757315795348,0.1,208.31,208.3,7.86689805]
[1757315795648,0.1,208.31,208.3,7.19689805]
[1757315795830,0.1,208.31,208.3,10.05008308]
[1757315796231,0.1,208.31,208.3,7.65395315]
[1757315796432,0.1,208.31,208.3,90.15008308]
[1757315797048,0.79,208.31,208.3,80.1]
[1757315798042,0.1,208.31,208.3,84.90076812]
[1757315798650,0.79,208.31,208.3,80.1]
[1757315800663,0.79,208.31,208.3,84.90076812]
[1757315801142,0.1,208.31,208.3,84.90076812]
[1757315802435,0.1,208.31,208.3,7.19689805]
[1757315804243,0.1,208.31,208.3,7.86689805]
[1757315804437,0.1,208.31,208.3,4.80076812]
[1757315804661,0.1,208.31,208.3,2.39612993]
[1757315807458,0.1,208.31,208.3,7.86689805]
[1757315808361,0.1,208.31,208.3,87.96689805]
[1757315808860,0.1,208.31,208.3,87.29689805]
[1757315810960,0.1,208.31,208.3,85.57076812]
[1757315811258,0.1,208.31,208.3,87.96689805]
[1757315813740,0.1,208.31,208.3,87.29689805]
[1757315814361,0.1,208.31,208.3,87.96689805]
[1757315814861,0.1,208.31,208.3,87.29689805]
[1757315815557,0.1,208.31,208.3,87.96689805]
[1757315815939,0.1,208.31,208.3,87.29689805]
[1757315817060,0.1,208.31,208.3,87.96689805]
[1757315817563,0.1,208.31,208.3,116.12689805]
[1757315817968,0.08416588,208.34,208.3,119.00998736]
[1757315818150,0.08416588,208.34,208.33,2.39612993]
[1757315818466,0.08416588,208.34,208.33,5.27921924]
[1757315819359,0.08416588,208.34,208.33,2.88308931]
[1757315820367,0.08416588,208.34,208.33,7.68316611]
[1757315820768,0.75,208.36,208.33,7.68316611]
[1757315821071,0.69,208.35,208.34,2.88308931]
[1757315821879,0.69,208.35,208.34,7.68293571]
[1757315822372,0.06,208.36,208.34,11.41752411]
[1757315822567,0.75,208.36,208.35,2.88308931]
[1757315823163,0.06,208.36,208.35,2.88308931]
[1757315823367,0.75,208.36,208.35,2.88308931]
[1757315823567,0.06,208.36,208.35,6.61767771]
[1757315824156,0.06,208.36,208.35,11.41729374]
[1757315826474,0.06,208.36,208.35,12.08729374]
[1757315826867,0.06,208.36,208.35,121.01729374]
[1757315827973,1e-08,208.36,208.35,147.01729374]
[1757315828180,0.66,208.42,208.35,159.01633381]
[1757315828383,0.66,208.42,208.4,3.7345884]
[1757315828561,0.66,208.42,208.41,2.88308931]
[1757315828971,0.66,208.42,208.41,11.41591195]
[1757315829281,38.1,208.43,208.41,2.88308931]
[1757315829478,38.1,208.43,208.42,2.88308931]
[1757315829676,38.76,208.43,208.42,2.88308931]
[1757315830189,38.1,208.43,208.42,2.88308931]
[1757315830363,38.1,208.43,208.42,6.61767771]
[1757315830561,38.1,208.43,208.42,11.41568174]
[1757315830765,0.66,208.46,208.42,12.08568174]
[1757315831071,0.66,208.46,208.43,6.61767771]
[1757315831275,0.66,208.46,208.44,2.88308931]
[1757315831478,38.08,208.48,208.45,2.88308931]
[1757315831671,38.08,208.48,208.43,3.7345884]
[1757315831875,38.08,208.48,208.44,2.82182194]
[1757315832080,0.66,208.47,208.45,2.82182194]
[1757315832265,0.66,208.46,208.43,3.7345884]
[1757315832580,0.66,208.46,208.44,2.8207187]
[1757315832786,0.66,208.46,208.43,3.7345884]
[1757315833080,0.66,208.45,208.44,2.8207187]
[1757315834279,0.66,208.45,208.42,3.7345884]
[1757315834476,0.66,208.45,208.43,2.81910299]
[1757315834690,0.66,208.45,208.42,8.53257406]
[1757315834874,0.66,208.45,208.43,6.55387505]
[1757315835089,0.66,208.45,208.43,3.7345884]
[1757315835390,0.66,208.47,208.43,3.7345884]
[1757315835572,0.66,208.46,208.43,3.7345884]
[1757315835979,0.66,208.46,208.42,4.79798566]
[1757315836282,0.66,208.46,208.43,11.35118575]
[1757315836587,0.66,208.46,208.43,4.79773129]
[1757315836769,0.66,208.46,208.43,8.53231969]
[1757315837384,0.66,208.45,208.41,0.67]
[1757315837567,0.66,208.47,208.43,3.7345884]
[1757315837882,0.66,208.46,208.43,3.7345884]
[1757315838075,0.66,208.46,208.44,3.7345884]
[1757315838277,0.66,208.46,208.42,0.67]
[1757315838497,38.74,208.48,208.43,3.48760579]
[1757315838693,0.66,208.47,208.43,7.22219419]
[1757315838892,0.66,208.49,208.45,3.7345884]
[1757315839086,38.66,208.48,208.45,3.7345884]
[1757315839383,38.0,208.48,208.45,3.7345884]
[1757315839584,0.66,208.47,208.45,3.7345884]
[1757315840190,0.66,208.47,208.42,5.46788966]
[1757315840378,0.66,208.47,208.43,7.22091555]
[1757315840578,0.66,208.47,208.44,2.81632715]
[1757315840790,0.66,208.47,208.43,4.4045884]
[1757315840993,0.66,208.47,208.44,6.55091485]
[1757315841191,0.66,208.47,208.44,3.7345884]
[1757315842711,0.66,208.47,208.43,84.89769608]
[1757315842882,41.7345884,208.48,208.44,2.81644399]
[1757315843204,0.66,208.47,208.43,83.8345884]
[1757315843388,0.66,208.47,208.44,2.81647983]
[1757315843699,0.66,208.47,208.44,3.7345884]
[1757315844202,38.0,208.48,208.44,4.4045884]
[1757315844495,38.66,208.48,208.45,2.81714117]
[1757315845693,41.7345884,208.48,208.45,2.81714117]
[1757315845875,0.66,208.47,208.43,83.8345884]
[1757315846071,0.66,208.46,208.44,2.81702995]
[1757315846381,41.7345884,208.48,208.45,2.81702995]
[1757315846382,46.53123221,208.48,208.45,2.81702995]
[1757315846694,46.53123221,208.48,208.43,83.8345884]
[1757315847001,46.53123221,208.48,208.43,3.7345884]
[1757315847002,0.66,208.47,208.43,3.7345884]
[1757315847296,46.53123221,208.48,208.43,3.7345884]
[1757315847470,0.66,208.46,208.43,4.4045884]
[1757315847669,0.66,208.45,208.43,3.7345884]
[1757315847873,0.66,208.44,208.4,3.7345884]
[1757315848100,0.66,208.43,208.41,2.81904958]
[1757315848406,0.66,208.43,208.39,3.7345884]
[1757315848706,0.66,208.43,208.4,3.48927207]
[1757315848885,0.66,208.43,208.41,2.81927207]
[1757315849188,0.66,208.43,208.4,4.4045884]
[1757315849400,0.66,208.43,208.41,2.81947975]
[1757315849604,37.92,208.44,208.4,4.4045884]
[1757315849801,37.92,208.44,208.41,2.81947922]
[1757315850092,0.66,208.43,208.37,0.67]
[1757315850297,0.66,208.43,208.38,6.55414043]